fUSD/lending_fUSD_20250826
["ID","MTS","AMOUNT","RATE_DAILY","PERIOD"]
[381470242,1756225849423,-1000.0,0.00026797,2]
[381470243,1756225849432,-1000.0,0.000268,2]
[381470244,1756225849442,-1000.0,0.00026806,2]
[381470245,1756225849451,-4687.26890839,0.00026808,2]
[381470246,1756225849462,-150.0,0.00026812,2]
[381470247,1756225849471,-150.0,0.00026821,2]
[381470248,1756225849481,-150.0,0.00026827,2]
[381470249,1756225849491,-1425.0,0.00026827,2]
[381470250,1756225849500,-150.0,0.00026828,4]
[381470251,1756225849511,-464.51,0.00026829,2]
[381470252,1756225849520,-1000.0,0.00026838,2]
[381470253,1756225849530,-1425.0,0.00026844,2]
[381470254,1756225849540,-150.0,0.00026845,2]
[381470255,1756225849549,-500.0,0.0002685,2]
[381470256,1756225849559,-432.0,0.0002685,2]
[381470257,1756225849568,-500.0,0.0002685,2]
[381470258,1756225849578,-500.0,0.0002685,2]
[381470259,1756225849591,-500.0,0.0002685,2]
[381470260,1756225849600,-516.0,0.0002685,2]
[381470261,1756225849610,-775.0,0.0002685,2]
[381470262,1756225849619,-1000.0,0.00026854,2]
[381470263,1756225849629,-1000.0,0.00026861,2]
[381470264,1756225849639,-1000.0,0.00026867,2]
[381470265,1756225849648,-150.0,0.00026869,2]
[381470266,1756225849657,-1425.0,0.00026875,2]
[381470267,1756225849666,-150.0,0.00026878,2]
[381470268,1756225849675,-316.18208052,0.00026882,2]
[381470269,1756225849685,-1000.0,0.00026887,2]
[381470270,1756225849694,-150.0,0.00026889,2]
[381470271,1756225849703,-1425.0,0.00026891,2]
[381470272,1756225849713,-1425.0,0.00026892,2]
[381470273,1756225849723,-362.7404307,0.000269,2]
[381470274,1756225849732,-150.0,0.00026904,2]
[381470275,1756225849742,-4204.8874452,0.00026905,2]
[381470276,1756225849752,-549.6416722,0.0002691,4]
[381470277,1756225849761,-1348.02215369,0.0002691,4]
[381470278,1756225849770,-1348.02215369,0.0002691,4]
[381470279,1756225849780,-1348.02215369,0.0002691,4]
[381470280,1756225849789,-1348.02215369,0.0002691,4]
[381470281,1756225849799,-1348.02215369,0.0002691,4]
[381470282,1756225849808,-1348.02215369,0.0002691,4]
[381470283,1756225849818,-1348.02215369,0.0002691,4]
[381470284,1756225849827,-1348.02215369,0.0002691,4]
[381470285,1756225849839,-1348.02,0.0002691,4]
[381470286,1756225849848,-4687.26890839,0.00026923,2]
[381470287,1756225849857,-616.0,0.00026926,7]
[381470288,1756225849867,-309.29654756,0.00026941,2]
[381470289,1756225849876,-386.87667747,0.00026941,2]
[381470290,1756225849886,-213.0,0.0002696,2]
[381470291,1756225849896,-209.0,0.0002696,2]
[381470292,1756225849905,-229.0,0.0002696,2]
[381470293,1756225849915,-151.0,0.00026961,7]
[381470294,1756225849924,-151.0,0.00026961,7]
[381470295,1756225849933,-260.173247,0.00026961,7]
[381470296,1756225849944,-151.0,0.00026961,7]
[381470297,1756225849955,-184.643241,0.00026961,7]
[381470298,1756225849964,-151.0,0.00026961,7]
[381470299,1756225849973,-151.0,0.00026961,7]
[381470300,1756225849983,-151.0,0.00026961,7]
[381470301,1756225849992,-184.643241,0.00026961,7]
[381470302,1756225850002,-151.0,0.00026961,7]
[381470303,1756225850011,-184.643241,0.00026961,7]
[381470304,1756225850021,-151.0,0.00026961,7]
[381470305,1756225850030,-184.643241,0.00026961,7]
[381470306,1756225850040,-151.0,0.00026961,7]
[381470307,1756225850049,-151.0,0.00026961,7]
[381470308,1756225850058,-151.0,0.00026961,7]
[381470309,1756225850068,-165.019239,0.00026961,7]
[381470310,1756225850077,-165.019239,0.00026961,7]
[381470311,1756225850088,-151.0,0.00026961,7]
[381470312,1756225850104,-165.019239,0.00026961,7]
[381470313,1756225850114,-151.0,0.00026961,7]
[381470314,1756225850123,-151.0,0.00026961,7]
[381470315,1756225850133,-165.019239,0.00026961,7]
[381470316,1756225850143,-492.45,0.00026961,7]
[381470317,1756225850152,-151.0,0.00026961,7]
[381470318,1756225850162,-151.0,0.00026961,7]
[381470319,1756225850171,-151.0,0.00026961,7]
[381470320,1756225850181,-492.45,0.00026961,7]
[381470321,1756225850200,-151.0,0.00026961,7]
[381470322,1756225850216,-151.0,0.00026961,7]
[381470323,1756225850226,-492.45,0.00026961,7]
[381470324,1756225850236,-492.45,0.00026961,7]
[381470325,1756225850245,-151.0,0.00026961,7]
[381470326,1756225850254,-151.0,0.00026961,7]
[381470327,1756225850263,-175.975123,0.00026961,7]
[381470328,1756225850273,-151.0,0.00026961,7]
[381470329,1756225850283,-260.994408,0.00026961,7]
[381470330,1756225850293,-260.994408,0.00026961,7]
[381470331,1756225850303,-260.994408,0.00026961,7]
[381470332,1756225850312,-260.994408,0.00026961,7]
[381470333,1756225850322,-175.975123,0.00026961,7]
[381470334,1756225850333,-175.975123,0.00026961,7]
[381470335,1756225850344,-151.0,0.00026961,7]
[381470336,1756225850353,-175.975123,0.00026961,7]
[381470337,1756225850362,-189.44367,0.00026961,7]
[381470338,1756225850371,-189.44367,0.00026961,7]
[381470339,1756225850382,-189.44367,0.00026961,7]
[381470340,1756225850391,-189.44367,0.00026961,7]
[381470341,1756225850400,-164.49898994,0.00026968,2]
[381470342,1756225850411,-171.988464,0.00026986,4]
[381470343,1756225850421,-500.0,0.00026999,2]
[381470344,1756225850431,-1000.0,0.00026999,2]
[381470345,1756225850440,-300.0,0.00026999,10]
[381470346,1756225850450,-6002.05,0.00027,7]
[381470347,1756225850459,-130390.54448686,0.00027,3]
[381470348,1756225850469,-250.0,0.00027,2]
[381470349,1756225850479,-1923.23172006,0.00027,14]
[381470350,1756225850488,-1011.08413419,0.00027,2]
[381470351,1756225850498,-3039.4336872,0.00027,2]
[381470352,1756225850507,-452.08897504,0.00027,30]
[381470353,1756225850517,-3572.60000109,0.00027,30]
[381470354,1756225850527,-3250.0,0.00027,3]
[381470355,1756225850536,-3246.76975266,0.00027,2]
[381470356,1756225850546,-1395.95,0.00027,7]
[381470357,1756225850555,-4976.2,0.00027,7]
[381470358,1756225850564,-20895.91569959,0.00027,2]
[381470359,1756225850573,-844.63891918,0.00027,7]
[381470360,1756225850583,-5345.58,0.00027,7]
[381470361,1756225850592,-1274.43,0.00027,7]
[381470362,1756225850601,-151.0,0.00027,7]
[381470363,1756225850611,-151.0,0.00027,7]
[381470364,1756225850620,-151.0,0.00027,7]
[381470365,1756225850630,-151.0,0.00027,7]
[381470366,1756225850639,-151.0,0.00027,7]
[381470367,1756225850649,-151.0,0.00027,7]
[381470368,1756225850659,-490.731049,0.00027,7]
[381470369,1756225850668,-490.731049,0.00027,7]
[381470370,1756225850677,-151.0,0.00027,7]
[381470371,1756225850687,-490.731049,0.00027,7]
[381470372,1756225850696,-490.731049,0.00027,7]
[381470373,1756225850705,-151.0,0.00027,7]
[381470374,1756225850716,-151.0,0.00027,7]
[381470375,1756225850725,-151.0,0.00027,7]
[381470376,1756225850734,-151.0,0.00027,7]
[381470377,1756225850742,-151.0,0.00027,7]
[381470378,1756225850751,-151.0,0.00027,7]
[381470379,1756225850760,-151.0,0.00027,7]
[381470380,1756225850769,-151.0,0.00027,7]
[381470381,1756225850778,-151.0,0.00027,7]
[381470382,1756225850788,-151.0,0.00027,7]
[381470383,1756225850797,-263.773844,0.00027,7]
[381470384,1756225850806,-1200.41,0.00027,7]
[381470385,1756225850947,-151.0,0.00027,7]
[381470386,1756225850956,-151.253187,0.00027,7]
[381470387,1756225850965,-151.0,0.00027,7]
[381470388,1756225850974,-151.0,0.00027,7]
[381470389,1756225850983,-151.0,0.00027,7]
[381470390,1756225850992,-160.567742,0.00027,7]
[381470391,1756225851001,-151.0,0.00027,7]
[381470392,1756225851010,-151.0,0.00027,7]
[381470393,1756225851019,-151.0,0.00027,7]
[381470394,1756225851028,-151.839519,0.00027,7]
[381470395,1756225851037,-151.0,0.00027,7]
[381470396,1756225851046,-151.0,0.00027,7]
[381470397,1756225851056,-151.0,0.00027,7]
[381470398,1756225851065,-151.0,0.00027,7]
[381470399,1756225851074,-291.498716,0.00027,7]
[381470400,1756225851084,-151.0,0.00027,7]
[381470401,1756225851094,-151.0,0.00027,7]
[381470402,1756225851103,-151.0,0.00027,7]
[381470403,1756225851113,-161.0,0.00027,7]
[381470404,1756225851122,-300.0,0.00027009,10]
[381470405,1756225851131,-300.0,0.00027009,10]
[381470406,1756225851140,-150.0,0.00027009,2]
[381470407,1756225851150,-300.0,0.00027009,10]
[381470408,1756225851159,-300.0,0.00027009,10]
[381470409,1756225851168,-244842.43945215,0.0002701,2]
[381470410,1756225851191,-5166.92681283,0.0002701,2]
[381470411,1756225851202,-1238.03220336,0.0002701,2]
[381470412,1756225851214,-27335.38693989,0.0002701,2]
[381470413,1756225851225,-89201.85249927,0.0002701,2]
[381470414,1756225851242,-151.0,0.00023,7]
[381470415,1756225851251,-422.674504,0.0002701,2]
[381470416,1756225851369,-106261.20609428,0.00017997,2]
[381470417,1756225851380,-271.41469904,0.00017999,2]
[381470418,1756225851390,-3374.0,0.00020094,2]
[381470419,1756225851400,-150.0,0.000225,3]
[381470420,1756225851411,-5000.0,0.00022666,2]
[381470421,1756225851420,-151.0,0.000248,7]
[381470422,1756225851430,-500.0,0.00025205,2]
[381470423,1756225851439,-500.0,0.00025205,2]
[381470424,1756225851449,-500.0,0.00025205,2]
[381470425,1756225851458,-500.0,0.00025205,2]
[381470426,1756225851469,-500.0,0.00025205,2]
[381470427,1756225851478,-500.0,0.00025205,2]
[381470428,1756225851488,-151.0,0.00026,7]
[381470429,1756225851497,-112756.37920518,0.0002701,2]
[381470430,1756225851512,-2607.96289345,0.0002701,2]
[381470431,1756225851523,-1145.0439,0.0002701,2]
[381470432,1756225851538,-2970.63,0.0002701,2]
[381470433,1756225851549,-275.34,0.0002701,2]
[381470434,1756225851702,-153.0,0.00019892,2]
[381470435,1756225851712,-153.0,0.00019892,2]
[381470436,1756225851723,-153.0,0.00019892,2]
[381470437,1756225851733,-153.0,0.00019892,2]
[381470438,1756225851742,-153.0,0.00019892,2]
[381470439,1756225851752,-153.0,0.00019892,2]
[381470440,1756225851762,-153.0,0.00019892,2]
[381470441,1756225851772,-260.732112,0.00023,7]
[381470442,1756225851782,-151.0,0.00023,7]
[381470443,1756225851792,-151.0,0.00023,7]
[381470444,1756225851803,-151.0,0.00023,7]
[381470445,1756225851813,-260.732112,0.00023,7]
[381470446,1756225851824,-666.0,0.00024141,3]
[381470447,1756225851834,-260.732112,0.000248,7]
[381470448,1756225851844,-151.0,0.000248,7]
[381470449,1756225851854,-500.0,0.00025205,2]
[381470450,1756225851866,-500.0,0.00025205,2]
[381470451,1756225851876,-500.0,0.00025205,2]
[381470452,1756225851886,-500.0,0.00025205,2]
[381470453,1756225851896,-500.0,0.00025205,2]
[381470454,1756225851906,-500.0,0.00025205,2]
[381470455,1756225851916,-500.0,0.00025205,2]
[381470456,1756225851926,-260.732112,0.00026,7]
[381470457,1756225851937,-151.0,0.00026,7]
[381470458,1756225851947,-15520.7018331,0.0002701,2]
[381470459,1756225851960,-18372.93652535,0.0002701,2]
[381470460,1756225851978,-151.0,0.000248,7]
[381470461,1756225851989,-1539.82023075,0.0002701,2]
[381470462,1756225852001,-906.32327898,0.0002701,2]
[381470463,1756225852022,-260.732112,0.000248,7]
[381470464,1756225852032,-495.337008,0.00025205,2]
[381470465,1756225852050,-153.0,0.00019892,2]
[381470466,1756225852060,-4.662992,0.00025205,2]
[381470467,1756225852070,-1119.5294866,0.0002701,2]
[381470468,1756225854827,-12474.7021,0.0002701,2]
[381470469,1756225854868,-1406.74845001,0.0002701,2]
[381470496,1756226238497,500.0,0.00013699,2]
[381470497,1756226238739,150.0,0.00014199,3]
[381470519,1756226445122,238.43,0.00013699,2]
[381470521,1756226445381,150.0,0.00013698,3]
[381470615,1756227031512,-289.99702758,0.00016719,2]
[381470616,1756227031524,-150.0,0.00016719,2]
[381470617,1756227031533,-60.00297242,0.00016814,2]
[381470618,1756227031549,-89.99702758,0.00016814,2]
[381470619,1756227031560,-1000.0,0.00016908,3]
[381470620,1756227031569,-150.0,0.00017097,2]
[381470621,1756227031579,-434.07235684,0.000172,2]
[381470622,1756227031599,-472.62618601,0.000172,2]
[381470623,1756227031610,-617.30145715,0.000172,2]
[381470624,1756227031619,-223.48,0.0001756,2]
[381470625,1756227031629,-1000.0,0.00017782,2]
[381470626,1756227031637,-922.94065243,0.00017913,2]
[381470627,1756227031652,-277.05934757,0.00017913,2]
[381470628,1756227031664,-216.42351285,0.00017914,2]
[381470629,1756227031672,-442.74081026,0.00017914,2]
[381470630,1756227031683,-321.25918974,0.00017914,2]
[381470631,1756227031693,-300.0,0.00017914,2]
[381470632,1756227031702,-1575.7429856,0.00017915,2]
[381470633,1756227031753,-453.115,0.00017915,2]
[381470642,1756227037304,-150.0,0.00017219,3]
[381470643,1756227037320,-324.68073314,0.00017912,2]
[381470644,1756227037336,-5036.31926686,0.00017915,2]
[381470645,1756227037408,-5102.90742981,0.00017915,2]
[381470646,1756227037424,-161.28319151,0.00017915,2]
[381470647,1756227037439,-500.0,0.00017973,2]
[381470648,1756227037457,-500.0,0.00017989,2]
[381470649,1756227037472,-198.0,0.00017989,2]
[381470650,1756227037488,-151.0,0.00017989,2]
[381470651,1756227037503,-151.0,0.00017989,2]
[381470652,1756227037518,-151.0,0.00017989,2]
[381470653,1756227037532,-151.0,0.00017989,2]
[381470654,1756227037547,-151.0,0.00017989,2]
[381470655,1756227037561,-151.0,0.00017989,2]
[381470656,1756227037576,-151.0,0.00017989,2]
[381470657,1756227037590,-151.0,0.00017989,2]
[381470658,1756227037605,-223.51972787,0.00017989,2]
[381470659,1756227037619,-187.94334991,0.00017999,2]
[381470660,1756227037634,-278.73496242,0.00017999,2]
[381470661,1756227037648,-500.0,0.00017999,2]
[381470662,1756227037667,-500.0,0.00017999,2]
[381470663,1756227037682,-437.37130851,0.00017999,2]
[381470664,1756227037697,-4401.48240656,0.00018,2]
[381470665,1756227037716,-1192.04934,0.00018,2]
[381470668,1756227037754,-150.0,0.00017719,3]
[381470670,1756227037769,-27349.71593,0.00018,2]
[381470682,1756227039306,-428.25505818,0.00018,2]
[381470687,1756227039404,-11142.93392604,0.00018,2]
[381470688,1756227039428,-278.01368451,0.00018,2]
[381470689,1756227039447,-727.94749836,0.00018,2]
[381470690,1756227039465,-789.74352181,0.00018,2]
[381470691,1756227039493,-973.21327008,0.00018,2]
[381470692,1756227039519,-18040.606927,0.00018,2]
[381470693,1756227039537,-110190.08941864,0.00018,2]
[381470694,1756227039551,-13956.1758033,0.00018015,2]
[381470695,1756227039566,-500.0,0.00018044,2]
[381470696,1756227039579,-500.0,0.00018099,2]
[381470697,1756227039594,-150.0,0.00018391,2]
[381470698,1756227039607,-250.0,0.00018391,2]
[381470699,1756227039621,-250.0,0.00018391,2]
[381470700,1756227039636,-1000.0,0.00018391,3]
[381470701,1756227039650,-150.0,0.00018391,2]
[381470702,1756227039667,-152.0,0.0001845,2]
[381470703,1756227039681,-151.0,0.00018464,2]
[381470704,1756227039695,-151.0,0.00018474,2]
[381470705,1756227039711,-641.0,0.00018644,2]
[381470706,1756227039724,-796.0,0.00018722,2]
[381470708,1756227039740,-652.44285119,0.0001897,2]
[381470709,1756227039753,-1000.0,0.0001897,2]
[381470710,1756227039768,-1000.0,0.0001897,2]
[381470711,1756227039781,-500.0,0.0001898,2]
[381470713,1756227039795,-436.84185686,0.00018988,2]
[381470715,1756227039809,-500.0,0.0001907,2]
[381470716,1756227039822,-1000.0,0.0001907,2]
[381470717,1756227039835,-12168.08468224,0.00019136,2]
[381470719,1756227039848,-151.0,0.00019178,2]
[381470720,1756227039862,-5000.0,0.00019178,2]
[381470721,1756227039874,-500.0,0.0001925,2]
[381470722,1756227039887,-269.29286367,0.0001925,2]
[381470723,1756227039900,-500.0,0.0001925,2]
[381470724,1756227039913,-500.0,0.0001925,2]
[381470725,1756227039927,-553.14101107,0.0001925,2]
[381470726,1756227039940,-1329.44524274,0.00019283,2]
[381470727,1756227039954,-1500.0,0.00019384,2]
[381470728,1756227040603,-300.0,0.00019459,3]
[381470729,1756227040639,-500.0,0.00019528,2]
[381470730,1756227040677,-300.0,0.00019548,2]
[381470731,1756227040688,-245.89,0.00019604,2]
[381470732,1756227040698,-1680.0,0.00019643,2]
[381470733,1756227040708,-156.587,0.00019726,2]
[381470734,1756227040717,-374.0,0.00019742,2]
[381470735,1756227040727,-374.0,0.00019742,2]
[381470736,1756227040738,-374.0,0.00019742,2]
[381470737,1756227040747,-374.0,0.00019742,2]
[381470738,1756227040755,-374.0,0.00019742,2]
[381470739,1756227040765,-374.0,0.00019742,2]
[381470740,1756227040774,-374.0,0.00019742,2]
[381470741,1756227040783,-374.0,0.00019742,2]
[381470742,1756227040792,-374.0,0.00019742,2]
[381470743,1756227040801,-374.0,0.00019742,2]
[381470744,1756227040810,-374.0,0.00019742,2]
[381470745,1756227040820,-374.0,0.00019742,2]
[381470746,1756227040829,-374.0,0.00019742,2]
[381470747,1756227040839,-688.0,0.00019743,2]
[381470748,1756227040848,-688.0,0.00019743,2]
[381470749,1756227040858,-688.0,0.00019743,2]
[381470750,1756227040867,-688.0,0.00019743,2]
[381470751,1756227040879,-688.0,0.00019743,2]
[381470752,1756227040888,-688.0,0.00019743,2]
[381470753,1756227040898,-688.0,0.00019743,2]
[381470754,1756227040907,-688.0,0.00019743,2]
[381470755,1756227040916,-688.0,0.00019743,2]
[381470756,1756227040925,-688.0,0.00019743,2]
[381470757,1756227040934,-688.0,0.00019743,2]
[381470758,1756227040943,-688.0,0.00019743,2]
[381470759,1756227040955,-374.0,0.00019749,2]
[381470760,1756227040964,-374.0,0.00019749,2]
[381470761,1756227040973,-374.0,0.00019749,2]
[381470762,1756227040983,-374.0,0.00019749,2]
[381470763,1756227040992,-374.0,0.00019749,2]
[381470764,1756227041001,-374.0,0.00019749,2]
[381470765,1756227041010,-374.0,0.00019749,2]
[381470766,1756227041019,-374.0,0.00019749,2]
[381470767,1756227041029,-374.0,0.00019749,2]
[381470768,1756227041038,-374.0,0.00019749,2]
[381470769,1756227041047,-374.0,0.00019749,2]
[381470770,1756227041056,-374.0,0.00019749,2]
[381470771,1756227041066,-688.0,0.0001975,2]
[381470772,1756227041075,-688.0,0.0001975,2]
[381470773,1756227041085,-688.0,0.0001975,2]
[381470774,1756227041094,-688.0,0.0001975,2]
[381470775,1756227041103,-688.0,0.0001975,2]
[381470776,1756227041113,-688.0,0.0001975,2]
[381470777,1756227041122,-688.0,0.0001975,2]
[381470778,1756227041131,-688.0,0.0001975,2]
[381470779,1756227041139,-688.0,0.0001975,2]
[381470780,1756227041149,-688.0,0.0001975,2]
[381470781,1756227041158,-688.0,0.0001975,2]
[381470782,1756227041167,-688.0,0.0001975,2]
[381470783,1756227041176,-374.0,0.00019754,2]
[381470784,1756227041185,-374.0,0.00019754,2]
[381470785,1756227041194,-374.0,0.00019754,2]
[381470786,1756227041204,-374.0,0.00019754,2]
[381470787,1756227041213,-374.0,0.00019754,2]
[381470788,1756227041222,-374.0,0.00019754,2]
[381470789,1756227041232,-374.0,0.00019754,2]
[381470790,1756227041241,-374.0,0.00019754,2]
[381470791,1756227041250,-374.0,0.00019754,2]
[381470792,1756227041259,-374.0,0.00019754,2]
[381470793,1756227041268,-374.0,0.00019754,2]
[381470794,1756227041277,-374.0,0.00019754,2]
[381470795,1756227041287,-374.0,0.00019754,2]
[381470796,1756227041295,-688.0,0.00019758,2]
[381470797,1756227041304,-688.0,0.00019758,2]
[381470798,1756227041313,-688.0,0.00019758,2]
[381470799,1756227041322,-688.0,0.00019758,2]
[381470800,1756227041332,-688.0,0.00019758,2]
[381470801,1756227041341,-688.0,0.00019758,2]
[381470802,1756227041350,-688.0,0.00019758,2]
[381470803,1756227041359,-688.0,0.00019758,2]
[381470804,1756227041368,-688.0,0.00019758,2]
[381470805,1756227041377,-688.0,0.00019758,2]
[381470806,1756227041387,-688.0,0.00019758,2]
[381470807,1756227041396,-688.0,0.00019758,2]
[381470808,1756227041405,-688.0,0.00019758,2]
[381470809,1756227041415,-374.0,0.00019763,2]
[381470810,1756227041424,-374.0,0.00019763,2]
[381470811,1756227041434,-374.0,0.00019763,2]
[381470812,1756227041444,-374.0,0.00019763,2]
[381470813,1756227041454,-374.0,0.00019763,2]
[381470814,1756227041463,-374.0,0.00019763,2]
[381470815,1756227041472,-374.0,0.00019763,2]
[381470816,1756227041481,-374.0,0.00019763,2]
[381470817,1756227041491,-374.0,0.00019763,2]
[381470818,1756227041500,-374.0,0.00019763,2]
[381470819,1756227041509,-374.0,0.00019763,2]
[381470820,1756227041518,-374.0,0.00019763,2]
[381470821,1756227041527,-374.0,0.00019763,2]
[381470822,1756227041536,-374.0,0.00019763,2]
[381470823,1756227041545,-688.0,0.00019765,2]
[381470824,1756227041554,-688.0,0.00019765,2]
[381470825,1756227041563,-688.0,0.00019765,2]
[381470826,1756227041572,-688.0,0.00019765,2]
[381470827,1756227041581,-688.0,0.00019765,2]
[381470828,1756227041590,-688.0,0.00019765,2]
[381470829,1756227041600,-688.0,0.00019765,2]
[381470830,1756227041609,-688.0,0.00019765,2]
[381470831,1756227041618,-688.0,0.00019765,2]
[381470832,1756227041627,-688.0,0.00019765,2]
[381470833,1756227041636,-688.0,0.00019765,2]
[381470834,1756227041645,-688.0,0.00019765,2]
[381470835,1756227041657,-688.0,0.00019765,2]
[381470836,1756227041667,-688.0,0.00019765,2]
[381470837,1756227041676,-500.0,0.00019798,2]
[381470838,1756227041686,-500.0,0.00019798,2]
[381470839,1756227041695,-370.14,0.00019863,2]
[381470840,1756227041705,-500.0,0.00019873,2]
[381470841,1756227041714,-844.63891918,0.0001988,2]
[381470842,1756227041724,-160.0,0.0001988,2]
[381470843,1756227041737,-160.0,0.0001988,2]
[381470844,1756227041747,-212.18043798,0.0001988,2]
[381470845,1756227041756,-458.7662338,0.0001988,2]
[381470846,1756227041765,-300.0,0.00019959,3]
[381470847,1756227041775,-500.0,0.0001997,2]
[381470848,1756227041784,-1000.0,0.0001997,2]
[381470849,1756227041793,-1000.0,0.00020004,2]
[381470850,1756227041803,-8310.14222251,0.00020068,2]
[381470851,1756227041813,-257.91778498,0.00020096,2]
[381470852,1756227041823,-400.65243584,0.00020096,2]
[381470853,1756227041833,-2434.74389024,0.00020096,2]
[381470854,1756227041842,-322.6107,0.00020096,2]
[381470855,1756227041852,-2524.82941417,0.00020151,2]
[381470856,1756227041862,-238.43,0.00020187,2]
[381470857,1756227041872,-2618.2481025,0.00020206,2]
[381470858,1756227041881,-1036.48856282,0.0002026,5]
[381470859,1756227041890,-2715.12328229,0.00020261,2]
[381470860,1756227041899,-258.67105877,0.00020271,2]
[381470861,1756227041908,-162.380719,0.00020274,2]
[381470862,1756227041917,-2815.58284374,0.00020316,2]
[381470863,1756227041926,-12168.08468224,0.00020356,2]
[381470864,1756227041935,-3114.043742,0.00020365,2]
[381470865,1756227041945,-2919.75940895,0.00020371,2]
[381470866,1756227041955,-456.75611087,0.00020388,2]
[381470867,1756227041964,-1000.0,0.00020421,2]
[381470868,1756227041973,-1887.74669751,0.00020426,2]
[381470869,1756227041983,-1000.0,0.00020547,2]
[381470870,1756227041992,-185.23,0.00020792,2]
[381470871,1756227042002,-160.0,0.00020792,7]
[381470872,1756227042012,-168.3888056,0.00020822,2]
[381470873,1756227042021,-694.8370788,0.00020889,2]
[381470874,1756227042031,-1500.0,0.00020968,2]
[381470875,1756227042040,-500.0,0.0002097,2]
[381470876,1756227042050,-1000.0,0.0002097,2]
[381470877,1756227042059,-3374.0,0.00020995,2]
[381470878,1756227042068,-926.0,0.00020995,2]
[381470879,1756227042078,-1256.0,0.00020995,2]
[381470880,1756227042087,-2031.0,0.00020995,2]
[381470881,1756227042097,-566.0,0.00020995,2]
[381470882,1756227042106,-599.0,0.00020995,2]
[381470883,1756227042116,-1298.0,0.00020995,2]
[381470884,1756227042125,-1658.0,0.00020995,2]
[381470885,1756227042134,-718.0,0.00020995,2]
[381470886,1756227042144,-21104.0,0.00020995,2]
[381470887,1756227042153,-4155.0,0.00020995,2]
[381470888,1756227042162,-6146.0,0.00020995,2]
[381470889,1756227042172,-6232.39,0.0002137,2]
[381470890,1756227042181,-174.61919141,0.0002137,2]
[381470891,1756227042190,-151.71721571,0.00021416,2]
[381470892,1756227042201,-206.0,0.00021439,2]
[381470893,1756227042211,-267.46074303,0.00021465,2]
[381470894,1756227042221,-334.5472959,0.00021465,2]
[381470895,1756227042231,-1000.0,0.00021506,2]
[381470896,1756227042240,-1582.39901521,0.00021516,2]
[381470898,1756227042250,-206.0,0.00021527,2]
[381470899,1756227042260,-2351.0,0.0002154,2]
[381470900,1756227042269,-12168.08468224,0.00021577,2]
[381470901,1756227042279,-600.0,0.00021616,2]
[381470902,1756227042288,-206.0,0.00021733,2]
[381470903,1756227042298,-206.0,0.0002177,2]
[381470904,1756227042307,-206.0,0.00021791,2]
[381470905,1756227042317,-206.0,0.00021846,2]
[381470906,1756227042326,-206.0,0.0002188,2]
[381470907,1756227042336,-5000.0,0.00021918,2]
[381470908,1756227042346,-181.08010149,0.00021918,2]
[381470909,1756227042355,-206.0,0.00021918,2]
[381470910,1756227042365,-206.0,0.00021991,2]
[381470911,1756227042375,-2310.74,0.00022,2]
[381470912,1756227042385,-250.0,0.00022092,2]
[381470913,1756227042394,-258.67105874,0.00022121,2]